bitfinex/quotes_BTCUSD_20260310
["timestamp","ask_amount","ask_price","bid_price","bid_amount"]
[1773146940218,10.47503696,70500.0,70499.0,0.07236299]
[1773146940429,10.40408328,70500.0,70499.0,0.07436299]
[1773146940986,10.20039766,70500.0,70498.0,0.00144]
[1773146941251,10.44455555,70500.0,70498.0,0.00144]
[1773146941468,10.44455555,70500.0,70497.0,0.00144]
[1773146941669,0.001,70499.0,70497.0,0.00144]
[1773146941873,0.28333328,70499.0,70497.0,0.00144]
[1773146942237,0.14142392,70499.0,70497.0,0.00144]
[1773146942455,0.03051456,70499.0,70497.0,0.00144]
[1773146942663,10.44455555,70500.0,70499.0,0.03]
[1773146942856,0.24369977,70499.0,70497.0,0.00144]
[1773146943216,0.001,70499.0,70497.0,0.00144]
[1773146943402,10.16222227,70500.0,70497.0,0.00144]
[1773146944389,6.93067349,70500.0,70497.0,0.07236489]
[1773146944581,6.14262538,70500.0,70499.0,0.03801765]
[1773146944782,5.85460331,70500.0,70499.0,0.03801765]
[1773146945755,0.001,70499.0,70497.0,0.07236489]
[1773146945953,5.85460331,70500.0,70497.0,0.07236489]
[1773146946253,5.85460331,70500.0,70497.0,0.11038254]
[1773146946586,0.001,70499.0,70497.0,0.11038254]
[1773146946760,5.85460331,70500.0,70497.0,0.11038254]
[1773146947173,5.85460331,70500.0,70497.0,0.07236489]
[1773146947557,0.001,70499.0,70497.0,0.07336489]
[1773146947758,5.85460331,70500.0,70497.0,0.11138254]
[1773146947959,5.85460331,70500.0,70497.0,0.11038254]
[1773146948368,0.001,70499.0,70497.0,0.07336489]
[1773146948580,5.85460331,70500.0,70498.0,0.03801765]
[1773146948794,5.85460331,70500.0,70499.0,0.07092299]
[1773146948995,5.85460331,70500.0,70496.0,0.03945765]
[1773146949144,0.22954777,70498.0,70496.0,0.00144]
[1773146949527,0.001,70499.0,70496.0,0.07236538]
[1773146949876,0.002,70499.0,70496.0,0.07236538]
[1773146950101,4.78725583,70500.0,70497.0,0.05862987]
[1773146950301,4.78725583,70500.0,70496.0,0.00144]
[1773146950302,0.03,70499.0,70496.0,0.00144]
[1773146950502,0.03,70499.0,70495.0,0.07092701]
[1773146950741,0.03,70499.0,70494.0,0.00144]
[1773146950901,0.001,70499.0,70497.0,0.03]
[1773146951255,0.16158464,70498.0,70494.0,0.00144]
[1773146951455,0.08918996,70498.0,70494.0,0.00144]
[1773146951655,4.73825583,70500.0,70493.0,0.03290522]
[1773146951864,0.001,70499.0,70491.0,0.07092902]
[1773146952072,0.30730395,70498.0,70491.0,0.2602]
[1773146952290,0.30730395,70498.0,70490.0,0.00144]
[1773146952487,0.03460395,70498.0,70491.0,0.1329]
[1773146952640,4.73085978,70500.0,70491.0,0.1329]
[1773146952840,4.63815978,70500.0,70492.0,0.07093003]
[1773146953046,0.03,70499.0,70492.0,0.07093003]
[1773146953266,0.33730395,70497.0,70491.0,0.07093065]
[1773146953528,0.33730395,70497.0,70492.0,0.127]
[1773146954218,0.33730395,70497.0,70491.0,0.07093065]
[1773146954355,0.33730395,70497.0,70492.0,1.0073]
[1773146954759,0.33730395,70497.0,70492.0,0.1285]
[1773146955270,0.33730395,70497.0,70492.0,0.07092965]
[1773146956311,0.03,70497.0,70492.0,0.07092965]
[1773146956516,0.31230395,70499.0,70496.0,0.03]
[1773146956742,0.31230395,70499.0,70492.0,0.07092965]
[1773146957367,0.03,70498.0,70492.0,0.07092965]
[1773146957735,4.73815978,70500.0,70493.0,0.05862987]
[1773146957977,4.22615057,70500.0,70495.0,0.05862987]
[1773146958205,4.22615057,70500.0,70496.0,0.05862987]
[1773146958485,0.03,70499.0,70497.0,0.070925]
[1773146958690,0.031,70499.0,70497.0,0.070925]
[1773146959351,0.001,70499.0,70497.0,0.070925]
[1773146959555,0.33730395,70496.0,70479.0,0.07114301]
[1773146959764,0.30730395,70497.0,70479.0,0.07114301]
[1773146959969,0.30730395,70493.0,70476.0,0.0002]
[1773146960176,0.30730395,70493.0,70475.0,0.07094681]
[1773146960177,0.30730395,70491.0,70475.0,0.00144]
[1773146960348,0.30730395,70487.0,70475.0,0.00144]
[1773146960491,0.08937403,70485.0,70476.0,0.07094613]
[1773146960690,0.33730395,70483.0,70476.0,0.07094613]
[1773146961508,0.30730395,70490.0,70476.0,0.129576]
[1773146961765,0.03,70485.0,70476.0,0.07094613]
[1773146961912,0.20730395,70484.0,70476.0,0.07094613]
[1773146962118,0.1,70483.0,70476.0,0.07094613]
[1773146963362,0.1,70483.0,70476.0,0.07114613]
[1773146963966,0.00144,70488.0,70476.0,0.129776]
[1773146964178,0.00144,70488.0,70476.0,0.4440997]
[1773146964446,0.03,70489.0,70476.0,0.4440997]
[1773146964658,0.03144,70489.0,70476.0,0.4440997]
[1773146964851,0.4096773,70489.0,70476.0,0.4440997]
[1773146965533,0.4096773,70489.0,70477.0,0.0228418]
[1773146965882,0.26740395,70489.0,70477.0,0.0228418]
[1773146966120,0.26740395,70489.0,70477.0,0.3143237]
[1773146966347,0.26740395,70489.0,70477.0,0.37295357]
[1773146966995,0.03144,70491.0,70478.0,0.37295357]
[1773146967145,0.07092451,70498.0,70476.0,0.07114613]
[1773146967146,3.66972798,70500.0,70481.0,0.05862987]
[1773146967347,0.01166001,70499.0,70486.0,0.05862987]
[1773146967572,0.08358315,70499.0,70486.0,0.37295357]
[1773146967770,0.3908871,70499.0,70486.0,0.37295357]
[1773146967977,0.03,70498.0,70487.0,0.05862987]
[1773146968169,0.03,70498.0,70488.0,0.00144]
[1773146968771,0.03,70498.0,70489.0,0.05862987]
[1773146969382,0.01222001,70499.0,70490.0,0.07093204]
[1773146969383,0.03,70499.0,70490.0,0.07093204]
[1773146969595,0.03,70497.0,70490.0,0.07093204]
[1773146970545,0.03,70496.0,70490.0,0.07093204]
[1773146971368,1.55248659,70500.0,70490.0,0.07093204]
[1773146971576,0.0002202,70524.0,70522.0,1.62826967]
[1773146971577,0.16027288,70523.0,70522.0,1.62826967]
[1773146971751,0.37819275,70533.0,70532.0,0.19277978]
[1773146971953,0.37963275,70533.0,70508.0,0.06372771]
[1773146972172,0.30730395,70531.0,70508.0,0.06384129]
[1773146972370,0.30730395,70528.0,70508.0,0.06384129]
[1773146972572,0.03,70525.0,70508.0,0.06384129]
[1773146972811,0.03,70521.0,70508.0,0.06384129]
[1773146972942,0.33874395,70521.0,70508.0,0.06384129]
[1773146973343,0.33730395,70521.0,70508.0,0.06384129]
[1773146973541,0.33730395,70521.0,70509.0,0.07091293]
[1773146974428,0.33730395,70521.0,70509.0,0.13464064]
[1773146976258,0.13808176,70521.0,70510.0,0.44997315]
[1773146976457,0.03,70524.0,70511.0,0.06372771]
[1773146976679,0.03,70524.0,70512.0,0.06372771]
[1773146976907,0.03,70524.0,70512.0,0.44997315]
[1773146977730,0.03,70524.0,70514.0,0.0709079]
[1773146978474,0.03,70523.0,70514.0,0.0709079]
[1773146978708,0.40129343,70524.0,70514.0,0.0709079]
[1773146978709,0.43129343,70521.0,70514.0,0.0709079]
[1773146978931,0.43151344,70521.0,70514.0,0.0709079]
[1773146980186,0.02126677,70524.0,70514.0,0.0709079]
[1773146980187,0.00144,70524.0,70514.0,0.0709079]
[1773146980411,0.00144,70527.0,70518.0,0.07173776]
[1773146980628,0.00022001,70529.0,70520.0,0.38624544]
[1773146980843,0.00022001,70529.0,70521.0,0.4579832]
[1773146982348,0.00022001,70529.0,70522.0,0.07089986]
[1773146984456,0.00022001,70529.0,70519.0,0.07090287]
[1773146984457,0.03,70527.0,70519.0,0.07090287]
[1773146985464,0.03,70526.0,70520.0,0.4579832]
[1773146986457,0.03,70525.0,70521.0,0.07090086]
[1773146986638,0.03,70525.0,70521.0,0.1399885]
[1773146986839,0.03,70525.0,70521.0,0.4990401]
[1773146987663,0.00022001,70529.0,70521.0,0.4990401]
[1773146990352,0.00166001,70540.0,70523.0,0.06908764]
[1773146990558,0.00166001,70540.0,70521.0,0.07090086]
[1773146990761,0.37433639,70537.0,70521.0,0.07090086]
[1773146990983,0.38322278,70535.0,70521.0,0.07090086]
[1773146991414,0.03,70534.0,70521.0,0.07090086]
[1773146991763,0.03,70534.0,70522.0,0.00144]
[1773146992759,0.03,70534.0,70523.0,0.07089885]
[1773146997716,0.03,70533.0,70523.0,0.07089885]
[1773146997913,0.03,70531.0,70523.0,0.07089885]
[1773146999948,0.03,70531.0,70523.0,0.07189885]
[1773147000511,0.03022001,70531.0,70523.0,0.07089885]
[1773147000711,0.03022001,70531.0,70523.0,0.07189885]
[1773147001362,0.00022001,70531.0,70523.0,0.07089885]
[1773147003713,0.00022001,70531.0,70523.0,0.07189885]
[1773147004138,0.00022001,70531.0,70523.0,0.06989885]
[1773147004287,0.00022001,70531.0,70523.0,0.43491604]
[1773147006614,0.00022001,70531.0,70524.0,0.06908764]
[1773147006818,0.0002433,70547.0,70528.0,0.36501719]
[1773147007020,0.00144,70556.0,70538.0,0.06908764]
[1773147007202,0.36430242,70555.0,70539.0,0.43554483]
[1773147007414,0.36574242,70555.0,70539.0,0.43554483]
[1773147007615,0.36574242,70555.0,70530.0,0.48772386]
[1773147007817,0.03,70550.0,70531.0,0.00144]
[1773147008014,0.39430242,70548.0,70532.0,0.43410483]
[1773147008463,0.39574242,70548.0,70534.0,0.07088779]
[1773147009251,0.00022001,70539.0,70534.0,0.07088779]
[1773147009449,0.00022001,70546.0,70535.0,0.43410483]
[1773147009852,0.00022001,70546.0,70534.0,0.07088779]
[1773147010048,0.00022001,70546.0,70522.0,0.07089926]
[1773147010049,0.39430242,70544.0,70529.0,0.07089282]
[1773147010270,0.39430242,70544.0,70533.0,0.36501719]
[1773147010271,0.03,70544.0,70533.0,0.36501719]
[1773147010474,0.00144,70543.0,70533.0,0.42476916]
[1773147010675,0.00144,70543.0,70534.0,0.07088779]
[1773147011027,0.03,70544.0,70534.0,0.07088779]
[1773147011174,0.39430242,70544.0,70534.0,0.07088779]
[1773147012750,0.39430242,70544.0,70533.0,0.07088779]
[1773147013697,0.39430242,70544.0,70532.0,0.07088779]
[1773147015176,0.03,70543.0,70533.0,0.36501719]
[1773147015514,0.03,70543.0,70535.0,0.42197802]
[1773147016076,0.00022001,70544.0,70537.0,0.36501719]
[1773147016276,0.00022001,70546.0,70539.0,0.42197802]
[1773147016481,0.00022001,70546.0,70540.0,0.00029646]
[1773147017137,0.00022001,70546.0,70541.0,0.07088076]
[1773147019429,0.00022001,70546.0,70539.0,0.07088091]
[1773147022574,0.03022001,70546.0,70538.0,0.07088076]
[1773147023389,0.03022001,70546.0,70540.0,0.05377502]
[1773147023566,0.00022001,70546.0,70541.0,0.41879221]
[1773147023987,0.07086671,70555.0,70545.0,0.36501719]
[1773147023988,0.00144,70555.0,70545.0,0.36501719]
[1773147024186,0.00022001,70554.0,70547.0,0.41879221]
[1773147024388,0.00022001,70554.0,70548.0,0.36578552]
[1773147024594,0.00022001,70554.0,70548.0,0.36501719]
[1773147025166,0.00022001,70554.0,70548.0,0.41879221]
[1773147025531,0.00022001,70554.0,70548.0,0.41871542]
[1773147025732,0.00022001,70554.0,70550.0,0.36501719]
[1773147025933,0.00022001,70554.0,70551.0,0.07087071]
[1773147026875,0.00022001,70554.0,70551.0,0.4358879]
[1773147027501,0.0002421,70560.0,70551.0,0.4358879]
[1773147027712,0.0002421,70560.0,70552.0,0.3653727]
[1773147027713,0.0302421,70560.0,70552.0,0.3653727]
[1773147027908,0.0302421,70560.0,70552.0,0.36501719]
[1773147028123,0.0302421,70560.0,70553.0,0.0708687]
[1773147028321,0.00214001,70559.0,70553.0,0.0708687]
[1773147028816,0.03214001,70559.0,70553.0,0.0708687]
[1773147029346,0.43515771,70567.0,70553.0,0.0708687]
[1773147029347,0.00562,70572.0,70556.0,0.36501719]
[1773147029550,0.00562,70572.0,70563.0,0.05320366]
[1773147029899,0.00562,70572.0,70564.0,0.36501719]
[1773147030073,0.13792178,70582.0,70561.0,0.00144]
[1773147030074,0.00144,70579.0,70567.0,0.10682269]
[1773147030386,0.00012,70583.0,70570.0,0.36501719]
[1773147030387,0.00144,70578.0,70570.0,0.36501719]
[1773147030929,0.00144,70578.0,70552.0,0.36501719]
[1773147030930,0.03,70576.0,70552.0,0.36501719]
[1773147031130,0.03,70570.0,70553.0,0.36501719]
[1773147031335,0.03,70568.0,70555.0,0.36501719]
[1773147031562,0.00022001,70559.0,70556.0,0.00186775]
[1773147031767,0.00144,70558.0,70550.0,0.07110144]
[1773147031980,6.533e-05,70556.0,70550.0,0.00023]
[1773147032217,0.03,70555.0,70550.0,0.00023]
[1773147034149,0.03,70554.0,70550.0,0.00023]
[1773147034305,0.03,70554.0,70550.0,0.44080161]
[1773147034511,0.03,70554.0,70550.0,0.43893373]
[1773147034773,0.03,70554.0,70550.0,0.00023]
[1773147034912,0.00144,70553.0,70550.0,0.00023]
[1773147035939,0.00144,70553.0,70544.0,0.00562]
[1773147036261,0.03,70552.0,70544.0,0.07661097]
[1773147036681,0.03,70552.0,70545.0,0.36783265]
[1773147037018,0.03,70552.0,70544.0,0.13577565]
[1773147037019,0.00022001,70559.0,70548.0,0.05916468]
[1773147037229,0.00022001,70559.0,70551.0,0.36767865]
[1773147038360,0.00122001,70559.0,70552.0,0.07086971]
[1773147038710,0.00122001,70559.0,70552.0,0.43854836]
[1773147038948,0.03,70564.0,70554.0,0.36743465]
[1773147039086,0.03,70564.0,70555.0,0.36743465]
[1773147039479,0.03,70564.0,70552.0,0.07086971]
[1773147039480,0.00022001,70563.0,70557.0,0.36743465]
[1773147039685,0.03022001,70563.0,70557.0,0.36743465]
[1773147040421,0.03022001,70563.0,70558.0,0.07086368]
[1773147040587,0.00144,70566.0,70560.0,0.41565391]
[1773147041119,0.00144,70566.0,70558.0,0.07086368]
[1773147041704,0.04199159,70571.0,70558.0,0.07086368]
[1773147041931,0.03144,70570.0,70559.0,0.36743465]
[1773147042508,0.03144,70570.0,70560.0,0.07086167]
[1773147042842,0.03,70570.0,70560.0,0.07086167]
[1773147043051,0.00144,70569.0,70560.0,0.07086167]
[1773147044225,0.03,70569.0,70561.0,0.41398955]
[1773147044603,0.03,70569.0,70562.0,0.07085966]
[1773147045222,0.03,70568.0,70562.0,0.07085966]
[1773147046273,0.00023,70575.0,70562.0,0.07085966]
[1773147046274,0.03,70567.0,70562.0,0.07085966]
[1773147046447,0.03,70567.0,70563.0,0.36743465]
[1773147046651,0.00144,70568.0,70565.0,0.41580455]
[1773147046838,0.00144,70569.0,70565.0,0.41580455]
[1773147047858,0.00108733,70569.0,70565.0,0.41580455]
[1773147048183,0.00108733,70569.0,70565.0,0.36740526]
[1773147048361,0.00130734,70569.0,70565.0,0.36740526]
[1773147048563,4.364e-05,70569.0,70566.0,0.07085565]
[1773147050583,4.364e-05,70569.0,70561.0,0.07086067]
[1773147050803,4.364e-05,70569.0,70559.0,0.0708618]
[1773147050973,0.03148364,70569.0,70558.0,0.07086271]
[1773147051176,0.03148364,70569.0,70555.0,0.07086655]
[1773147051177,0.00126361,70568.0,70555.0,0.07086655]
[1773147051962,0.00126361,70568.0,70551.0,0.0708706]
[1773147052167,0.00126361,70568.0,70550.0,0.0002]
[1773147052558,0.00126361,70568.0,70544.0,0.07669767]
[1773147052752,0.03,70566.0,70544.0,0.07681095]
[1773147053007,0.07085464,70567.0,70544.0,0.07681095]
[1773147053214,0.07067831,70567.0,70544.0,0.07681095]
[1773147053656,0.07067831,70567.0,70545.0,0.36711726]
[1773147053914,0.00144,70566.0,70545.0,0.36711726]
[1773147054105,0.00144,70566.0,70536.0,0.13208083]
[1773147054274,0.00155351,70566.0,70537.0,0.07088388]
[1773147055041,0.03,70564.0,70537.0,0.07088388]
[1773147055730,0.00144,70563.0,70537.0,0.07088388]
[1773147055948,0.00144,70562.0,70541.0,0.0490551]
[1773147056130,0.00144,70562.0,70544.0,0.36711726]
[1773147056368,0.03,70564.0,70546.0,0.36711726]
[1773147056572,0.00144,70561.0,70549.0,0.0490551]
[1773147056746,0.00144,70561.0,70550.0,0.36711726]
[1773147057078,0.03,70560.0,70550.0,0.36711726]
[1773147057259,0.00144,70559.0,70550.0,0.43798857]
[1773147057748,0.03,70560.0,70552.0,0.36711726]
[1773147057961,0.00144,70563.0,70556.0,0.36711726]
[1773147058173,0.00011351,70566.0,70556.0,0.36711726]
[1773147058390,0.00011351,70566.0,70550.0,0.07231131]
[1773147058391,0.00022001,70564.0,70558.0,0.36711726]
[1773147059050,0.00022001,70564.0,70558.0,0.43798032]
[1773147059252,0.00022001,70564.0,70553.0,0.07086792]
[1773147060125,0.00022001,70564.0,70553.0,0.14700884]
[1773147060359,0.00022001,70564.0,70556.0,0.36711726]
[1773147060551,0.03022001,70564.0,70556.0,0.36711726]
[1773147060898,0.03166001,70564.0,70556.0,0.36711726]
[1773147061124,0.03166001,70564.0,70554.0,0.07086676]
[1773147061748,0.03166001,70564.0,70552.0,0.0708677]
[1773147061749,0.1025182,70564.0,70552.0,0.0708677]
[1773147061952,0.03,70562.0,70552.0,0.0708677]
[1773147062986,0.03,70563.0,70552.0,0.0708677]
[1773147063172,0.03,70561.0,70552.0,0.0708677]
[1773147063575,0.00144,70560.0,70551.0,0.07087071]
[1773147063776,0.00144,70560.0,70545.0,0.43799355]
[1773147064157,0.00144,70560.0,70543.0,0.0747891]
[1773147064528,0.00144,70560.0,70543.0,0.07087775]
[1773147064729,0.03,70559.0,70543.0,0.07087775]
[1773147065678,0.03,70559.0,70542.0,0.43799695]
[1773147065891,0.10086274,70559.0,70542.0,0.43799695]
[1773147066095,0.03,70557.0,70542.0,0.43799695]
[1773147066326,0.03,70557.0,70543.0,0.07412582]
[1773147066470,0.03,70557.0,70546.0,0.36711726]
[1773147066674,0.03,70557.0,70542.0,0.07087969]
[1773147066675,0.00144,70556.0,70550.0,0.36682926]
[1773147066911,0.00144,70556.0,70550.0,0.44095508]
[1773147067086,0.00144,70555.0,70552.0,0.0002]
[1773147067414,0.00144,70555.0,70552.0,0.36702926]
[1773147067960,0.00126362,70555.0,70552.0,0.36702926]
[1773147069112,0.00126362,70555.0,70553.0,0.44029424]
[1773147069312,0.03,70561.0,70553.0,0.44029424]
[1773147069313,0.00144,70557.0,70553.0,0.44029424]
[1773147070313,0.00144,70557.0,70554.0,0.0708677]
[1773147070541,0.00144,70560.0,70557.0,0.36625326]
[1773147070716,0.00144,70560.0,70559.0,0.43906977]
[1773147070917,0.00144,70560.0,70559.0,0.36625326]
[1773147071153,0.00144,70560.0,70554.0,0.0708677]
[1773147071329,0.00126363,70560.0,70554.0,0.0708677]
[1773147071541,0.00022001,70564.0,70554.0,0.0708677]
[1773147071865,0.00144,70562.0,70554.0,0.43712096]
[1773147073328,0.00144,70561.0,70555.0,0.36567726]
[1773147073503,0.00144,70562.0,70557.0,0.43712164]
[1773147073674,0.00144,70563.0,70558.0,0.43712164]
[1773147073876,0.00144,70563.0,70558.0,0.14230763]
[1773147074086,0.00144,70563.0,70559.0,0.43712164]
[1773147074613,8.978e-05,70564.0,70559.0,0.43712164]
[1773147074614,0.00144,70562.0,70559.0,0.43712164]
[1773147075112,0.00144,70562.0,70553.0,0.0708687]
[1773147075872,0.03,70560.0,70552.0,0.0002]
[1773147076074,0.01181522,70559.0,70552.0,0.0002]
[1773147076272,0.00144,70562.0,70552.0,0.07106958]
[1773147076273,0.00144,70558.0,70552.0,0.07106958]
[1773147076474,0.00144,70558.0,70555.0,0.43649792]
[1773147076719,0.00022001,70563.0,70555.0,0.43649792]
[1773147076932,0.00144,70558.0,70555.0,0.36567726]
[1773147078956,0.00022001,70563.0,70555.0,0.43654339]
[1773147079159,0.00144,70559.0,70555.0,0.4365439]
[1773147079366,0.00144,70559.0,70558.0,0.06959059]
[1773147079723,0.00144,70559.0,70558.0,0.36538926]
[1773147079897,0.00144,70559.0,70555.0,0.07086664]
[1773147079898,0.00144,70559.0,70556.0,0.36538926]
[1773147080098,0.00144,70559.0,70555.0,0.07186664]
[1773147080299,0.00144,70559.0,70555.0,0.001]
[1773147080447,0.00144,70559.0,70554.0,0.43625687]
[1773147080649,0.00144,70559.0,70552.0,0.0002]
[1773147080848,0.00144,70559.0,70547.0,0.07087377]
[1773147081066,0.03144,70558.0,70547.0,0.07087377]
[1773147081698,0.03144,70558.0,70548.0,0.05357971]
[1773147082024,0.00126362,70558.0,70548.0,0.05357971]
[1773147082752,0.00126362,70558.0,70549.0,0.07087272]
[1773147082961,0.00126362,70558.0,70549.0,0.43626198]
[1773147083156,0.01126362,70558.0,70549.0,0.43626198]
[1773147083368,0.03,70557.0,70549.0,0.1392562]
[1773147083566,0.03,70557.0,70550.0,0.36538926]
[1773147084693,0.03,70557.0,70551.0,0.07087071]
[1773147085638,0.03,70557.0,70550.0,0.36538926]
[1773147085841,0.03,70557.0,70548.0,0.05357971]
[1773147086177,0.10086538,70557.0,70544.0,0.0002]
[1773147086620,0.00144,70556.0,70544.0,0.0710777]
[1773147086836,0.00144,70556.0,70545.0,0.00058028]
[1773147087043,0.00144,70555.0,70546.0,0.43317725]
[1773147088078,0.00144,70554.0,70546.0,0.43317725]
[1773147088367,0.11267994,70557.0,70546.0,0.43317725]
[1773147088607,0.00144,70556.0,70546.0,0.43317725]
[1773147088831,0.00144,70556.0,70546.0,0.36538926]
[1773147089045,0.00144,70556.0,70546.0,0.43305809]
[1773147089250,0.00144,70557.0,70548.0,0.06661938]
[1773147089479,0.03,70565.0,70552.0,0.06661938]
[1773147089697,0.00144,70562.0,70556.0,0.06661938]
[1773147089951,0.03,70565.0,70553.0,0.06617597]
[1773147089952,0.00132649,70565.0,70560.0,0.06661938]
[1773147090186,0.00562,70572.0,70554.0,0.00144]
[1773147090415,0.00144,70571.0,70562.0,0.06661938]
[1773147090631,0.00144,70571.0,70564.0,0.43501026]
[1773147090836,0.00599844,70572.0,70564.0,0.43501026]
[1773147091078,0.00144,70570.0,70564.0,0.43501026]
[1773147091464,0.00144,70569.0,70565.0,0.06603521]
[1773147091663,0.00144,70569.0,70566.0,0.3641526]
[1773147091883,0.00144,70569.0,70559.0,0.07086088]
[1773147092091,0.00144,70569.0,70556.0,0.43501772]
[1773147092294,0.00144,70568.0,70550.0,0.43502333]
[1773147092526,0.03,70566.0,70554.0,0.001]
[1773147092754,0.03,70566.0,70553.0,0.07086788]
[1773147092913,0.03,70566.0,70552.0,0.0708693]
[1773147093470,0.03,70566.0,70551.0,0.07086991]
[1773147093667,0.03,70566.0,70550.0,0.43502404]
[1773147094401,0.00022001,70559.0,70550.0,0.43502404]
[1773147094590,0.00144,70558.0,70553.0,0.3641526]
[1773147094777,0.00144,70558.0,70553.0,0.42968457]
[1773147095200,0.00144,70558.0,70553.0,0.3641526]
[1773147095404,0.00144,70558.0,70555.0,0.3641526]
[1773147095975,0.00144,70558.0,70552.0,0.07086971]
[1773147096397,0.03,70557.0,70552.0,0.43502231]
[1773147097018,0.03,70557.0,70544.0,0.42931842]
[1773147097019,0.03144,70557.0,70544.0,0.42931842]
[1773147097269,0.03144,70557.0,70545.0,0.43502633]
[1773147097675,0.03,70555.0,70544.0,0.0002]
[1773147098963,0.03,70553.0,70544.0,0.3643526]
[1773147099396,0.03,70553.0,70544.0,0.0002]
[1773147101975,0.03,70557.0,70546.0,0.3641526]
[1773147102182,0.00144,70556.0,70549.0,0.06386338]
[1773147102308,0.00144,70556.0,70550.0,0.3641526]
[1773147102506,0.00144,70556.0,70544.0,0.0002]
[1773147104144,0.10086669,70555.0,70544.0,0.07107727]
[1773147104468,0.10086669,70555.0,70545.0,0.3641526]
[1773147106210,0.03,70555.0,70545.0,0.3641526]
[1773147106413,0.10086726,70555.0,70545.0,0.3641526]
[1773147106626,0.03,70555.0,70545.0,0.3641526]
[1773147106885,0.10086681,70555.0,70545.0,0.3641526]
[1773147108380,0.03,70556.0,70548.0,0.3641526]
[1773147108608,0.00022001,70559.0,70551.0,0.06874498]
[1773147108808,0.00022001,70559.0,70546.0,0.07087574]
[1773147108809,0.00166001,70567.0,70555.0,0.06874498]
[1773147108985,0.00144,70566.0,70556.0,0.43256558]
[1773147109341,0.00144,70565.0,70556.0,0.3638206]
[1773147109542,0.00022001,70567.0,70559.0,0.06875172]
[1773147109750,0.00022001,70567.0,70560.0,0.3638206]
[1773147109970,0.00022001,70567.0,70561.0,0.06875172]
[1773147110174,0.00022001,70567.0,70562.0,0.43257232]
[1773147110689,0.00166001,70567.0,70562.0,0.43257232]
[1773147110889,0.00166001,70567.0,70562.0,0.3638206]
[1773147111099,0.00022001,70567.0,70562.0,0.3638206]
[1773147111251,0.00166001,70567.0,70562.0,0.3638206]
[1773147111451,0.03,70571.0,70563.0,0.06112971]
[1773147111653,0.00144,70570.0,70564.0,0.42461831]
[1773147112072,0.03,70571.0,70564.0,0.42461831]
[1773147112276,0.00144,70570.0,70564.0,0.42461831]
[1773147112476,0.00144,70570.0,70564.0,0.3634886]
[1773147112677,0.00144,70571.0,70564.0,0.3634886]
[1773147113060,0.03599844,70572.0,70564.0,0.3634886]
[1773147113304,0.00144,70571.0,70564.0,0.3634886]
[1773147113635,0.00144,70571.0,70553.0,0.32966298]
[1773147113790,0.00144,70571.0,70560.0,0.32966298]
[1773147113791,0.03144,70571.0,70560.0,0.32966298]
[1773147113990,0.03144,70571.0,70563.0,0.06060515]
[1773147114203,0.03144,70571.0,70566.0,0.32966298]
[1773147114407,0.03144,70571.0,70568.0,0.32966298]
[1773147114607,0.03144,70571.0,70568.0,0.39026813]
[1773147114809,0.00144,70571.0,70568.0,0.39026813]
[1773147115218,0.00144,70571.0,70564.0,0.07085695]
[1773147115219,0.03045001,70575.0,70566.0,0.07331641]
[1773147115430,0.0001476,70576.0,70570.0,0.07331641]
[1773147115638,0.0001476,70576.0,70571.0,0.40260139]
[1773147116015,0.0301476,70576.0,70566.0,0.07331641]
[1773147116221,0.0301476,70576.0,70566.0,0.40257201]
[1773147116478,0.0301476,70576.0,70566.0,0.14417109]
[1773147116636,0.0301476,70576.0,70567.0,0.3292556]
[1773147117002,0.0001476,70576.0,70567.0,0.3292556]
[1773147117204,0.0001476,70576.0,70566.0,0.07085468]
[1773147117403,0.1009936,70576.0,70563.0,0.3292556]
[1773147117609,0.1009936,70576.0,70562.0,0.07085926]
[1773147117846,0.10121361,70576.0,70562.0,0.07085926]
[1773147118634,0.10121361,70576.0,70559.0,0.3292556]
[1773147118836,0.10121361,70576.0,70561.0,0.3292556]
[1773147118837,0.10131542,70576.0,70561.0,0.3292556]
[1773147120929,0.10131542,70576.0,70562.0,0.40011526]
[1773147123093,0.03,70575.0,70563.0,0.07332178]
[1773147123304,0.00046942,70576.0,70567.0,0.06121776]
[1773147123514,0.00144,70576.0,70570.0,0.32887371]
[1773147123719,0.00144,70576.0,70572.0,0.32858571]
[1773147123901,0.00144,70576.0,70574.0,0.32829771]
[1773147124112,0.00022001,70582.0,70574.0,0.32829771]
[1773147124319,0.00144,70576.0,70574.0,0.38951547]
[1773147124526,0.00022001,70582.0,70574.0,0.38951547]
[1773147124760,0.00144,70578.0,70574.0,0.38951547]
[1773147125099,0.00144,70578.0,70575.0,0.32829771]
[1773147125295,0.0709259,70596.0,70576.0,0.06122043]
[1773147125501,0.00020153,70596.0,70588.0,0.06122043]
[1773147125727,0.00020153,70596.0,70580.0,0.48192291]
[1773147125728,0.00020153,70596.0,70590.0,0.06122043]
[1773147126071,0.00020153,70596.0,70593.0,0.32826177]
[1773147126245,0.00585,70600.0,70593.0,0.3894822]
[1773147126982,0.00144,70599.0,70593.0,0.3894822]
[1773147127702,0.03585,70600.0,70593.0,0.3894822]
[1773147127888,0.00729,70600.0,70593.0,0.3894822]
[1773147128385,0.03,70601.0,70593.0,0.3894822]
[1773147128386,0.03,70601.0,70595.0,0.38827803]
[1773147128841,0.03144,70602.0,70595.0,0.38827803]
[1773147129931,0.0001797,70606.0,70595.0,0.32709177]
[1773147130141,0.00144,70606.0,70594.0,0.32709177]
[1773147130337,0.03048,70610.0,70597.0,0.06119046]
[1773147130588,0.00144,70609.0,70598.0,0.32709177]
[1773147131182,0.00144,70609.0,70598.0,0.39791472]
[1773147131898,0.03,70608.0,70577.0,0.06121467]
[1773147132066,0.03,70608.0,70582.0,0.06121467]
[1773147132273,0.03,70608.0,70584.0,0.06121467]
[1773147132585,0.03,70608.0,70587.0,0.32709177]
[1773147132787,0.03,70608.0,70589.0,0.32709177]
[1773147133192,0.03,70606.0,70589.0,0.32709177]
[1773147133395,0.00144,70605.0,70589.0,0.39792425]
[1773147133580,0.00144,70604.0,70589.0,0.39792425]
[1773147134178,0.00144,70604.0,70589.0,0.3979239]
[1773147134380,0.00144,70604.0,70590.0,0.32709177]
[1773147135738,0.00144,70603.0,70591.0,0.07083055]
[1773147135950,0.00144,70603.0,70590.0,0.32709177]
[1773147138232,0.03,70601.0,70590.0,0.32709177]
[1773147138620,0.00144,70600.0,70590.0,0.32709177]
[1773147141052,0.00144,70600.0,70592.0,0.32709177]
[1773147141469,0.00144,70599.0,70590.0,0.07083134]